fUSD/lending_fUSD_20250402
["ID","MTS","AMOUNT","RATE_DAILY","PERIOD"]
[357016736,1743579061724,-500.0,0.00051232,120]
[357016737,1743579061733,-500.0,0.00051232,120]
[357016738,1743579061743,-502.65031061,0.00051232,120]
[357016739,1743579061752,-713.48,0.00051232,2]
[357016740,1743579061762,-628.2,0.00051232,120]
[357016741,1743579061771,-469.37989425,0.00051232,120]
[357016742,1743579061781,-500.0,0.00051232,120]
[357016743,1743579061790,-500.0,0.00051232,2]
[357016744,1743579061799,-1935.16,0.00051232,120]
[357016745,1743579061809,-500.0,0.00051232,120]
[357016746,1743579061818,-1087.43,0.00051232,2]
[357016747,1743579061828,-456.62537398,0.00051232,120]
[357016748,1743579061838,-500.0,0.00051232,2]
[357016749,1743579061848,-505.63966558,0.00051232,16]
[357016750,1743579061858,-500.0,0.00051297,60]
[357016751,1743579061867,-500.0,0.00051355,60]
[357016752,1743579061878,-201.1619028,0.0005139,30]
[357016753,1743579061887,-169.17420686,0.0005139,30]
[357016754,1743579061897,-150.79,0.00051446,120]
[357016755,1743579061907,-200.0,0.00051506,15]
[357016756,1743579061917,-1643.03,0.00051506,10]
[357016757,1743579061927,-2000.0,0.00051506,2]
[357016758,1743579061937,-500.0,0.00051506,120]
[357016759,1743579061946,-500.0,0.00051506,120]
[357016760,1743579061955,-398.22860255,0.00051506,30]
[357016761,1743579061966,-560.1,0.00051506,120]
[357016762,1743579061976,-1817.48,0.00051506,2]
[357016763,1743579061985,-500.0,0.00051506,120]
[357016764,1743579061995,-500.0,0.00051506,120]
[357016765,1743579062007,-193.77171102,0.00051506,120]
[357016766,1743579062017,-500.0,0.00051506,120]
[357016767,1743579062027,-500.0,0.00051506,120]
[357016768,1743579062036,-500.0,0.00051506,120]
[357016769,1743579062046,-500.0,0.00051506,120]
[357016770,1743579062056,-834.73,0.00051506,120]
[357016771,1743579062066,-84638.93,0.00051506,7]
[357016772,1743579062075,-500.0,0.00051506,120]
[357016773,1743579062085,-10300.02,0.00051506,2]
[357016774,1743579062095,-500.0,0.00051506,30]
[357016775,1743579062105,-253.694247,0.00051506,120]
[357016776,1743579062114,-500.0,0.00051506,120]
[357016777,1743579062124,-713.48,0.00051506,2]
[357016778,1743579062133,-628.2,0.00051506,120]
[357016779,1743579062143,-500.0,0.00051506,120]
[357016780,1743579062152,-500.0,0.00051506,2]
[357016781,1743579062162,-1935.16,0.00051506,120]
[357016782,1743579062171,-500.0,0.00051506,120]
[357016783,1743579062181,-1087.43,0.00051506,2]
[357016784,1743579062191,-500.0,0.00051506,2]
[357016785,1743579062201,-171.63,0.00051506,120]
[357016786,1743579062210,-152.0,0.00051517,16]
[357016787,1743579062220,-892.62,0.000516,2]
[357016788,1743579062230,-12472.66,0.000516,2]
[357016789,1743579062239,-156.987229,0.00051672,30]
[357016790,1743579062249,-3433.11,0.000517,2]
[357016791,1743579062258,-206.24,0.000517,2]
[357016792,1743579062346,-1643.03,0.0005178,10]
[357016793,1743579062366,-2000.0,0.0005178,2]
[357016794,1743579062376,-500.0,0.0005178,120]
[357016795,1743579062386,-500.0,0.0005178,120]
[357016796,1743579062395,-560.1,0.0005178,120]
[357016797,1743579062405,-1817.48,0.0005178,2]
[357016798,1743579062415,-254.30078825,0.0005178,120]
[357016799,1743579062424,-500.0,0.0005178,120]
[357016800,1743579062434,-500.0,0.0005178,120]
[357016801,1743579062444,-500.0,0.0005178,120]
[357016802,1743579062454,-500.0,0.0005178,120]
[357016803,1743579062463,-500.0,0.0005178,120]
[357016804,1743579062473,-834.73,0.0005178,120]
[357016805,1743579062483,-84638.93,0.0005178,7]
[357016806,1743579062493,-500.0,0.0005178,120]
[357016807,1743579062505,-10300.02,0.0005178,2]
[357016808,1743579062515,-500.0,0.0005178,30]
[357016809,1743579062524,-500.0,0.0005178,120]
[357016810,1743579062533,-713.48,0.0005178,2]
[357016811,1743579062543,-628.2,0.0005178,120]
[357016812,1743579062553,-500.0,0.0005178,120]
[357016813,1743579062565,-500.0,0.0005178,2]
[357016814,1743579062575,-1935.16,0.0005178,120]
[357016815,1743579062586,-500.0,0.0005178,120]
[357016816,1743579062595,-1087.43,0.0005178,2]
[357016817,1743579062605,-490.75847543,0.0005178,2]
[357016818,1743579062614,-150.0,0.00051781,14]
[357016819,1743579062624,-151.0,0.000518,120]
[357016820,1743579062633,-2155.31,0.000519,2]
[357016821,1743579062643,-852.89,0.000519,2]
[357016822,1743579062653,-2643.58,0.000519,2]
[357016823,1743579062662,-420.45,0.000519,2]
[357016824,1743579062671,-884.32,0.000519,2]
[357016825,1743579062681,-505.32336541,0.00051987,30]
[357016826,1743579062690,-500.0,0.00052009,60]
[357016827,1743579062700,-200.0,0.00052021,15]
[357016828,1743579062710,-1643.03,0.00052054,10]
[357016829,1743579062719,-2000.0,0.00052054,2]
[357016830,1743579062728,-500.0,0.00052054,120]
[357016831,1743579062738,-500.0,0.00052054,120]
[357016832,1743579062747,-560.1,0.00052054,120]
[357016833,1743579062757,-1817.48,0.00052054,2]
[357016834,1743579062767,-500.0,0.00052054,120]
[357016835,1743579062777,-500.0,0.00052054,120]
[357016836,1743579062787,-429.21624778,0.00052054,120]
[357016837,1743579062797,-500.0,0.00052054,120]
[357016838,1743579062807,-500.0,0.00052054,120]
[357016839,1743579062816,-834.73,0.00052054,120]
[357016840,1743579062826,-84638.93,0.00052054,7]
[357016841,1743579062836,-226.2323,0.00052054,120]
[357016842,1743579062846,-10300.02,0.00052054,2]
[357016843,1743579062855,-500.0,0.00052054,30]
[357016844,1743579062865,-500.0,0.00052054,120]
[357016845,1743579062874,-713.48,0.00052054,2]
[357016846,1743579062884,-628.2,0.00052054,120]
[357016847,1743579062892,-500.0,0.00052054,120]
[357016848,1743579062902,-252.86738818,0.00052054,2]
[357016849,1743579062912,-1935.16,0.00052054,120]
[357016850,1743579062922,-500.0,0.00052054,120]
[357016851,1743579062932,-1087.43,0.00052054,2]
[357016852,1743579062942,-500.0,0.00052126,60]
[357016853,1743579062951,-500.0,0.0005223,60]
[357016854,1743579062961,-1065.0,0.0005225,30]
[357016855,1743579062971,-1643.03,0.00052328,10]
[357016856,1743579062980,-2000.0,0.00052328,2]
[357016857,1743579062990,-500.0,0.00052328,120]
[357016858,1743579062999,-319.59616626,0.00052328,120]
[357016859,1743579063009,-560.1,0.00052328,120]
[357016860,1743579063018,-1817.48,0.00052328,2]
[357016861,1743579063028,-500.0,0.00052328,120]
[357016862,1743579063038,-383.24463337,0.00052328,120]
[357016863,1743579063047,-500.0,0.00052328,120]
[357016864,1743579063056,-230.70445115,0.00052328,120]
[357016865,1743579063066,-834.73,0.00052328,120]
[357016866,1743579063075,-84638.93,0.00052328,7]
[357016867,1743579063086,-10300.02,0.00052328,2]
[357016868,1743579063097,-500.0,0.00052328,30]
[357016869,1743579063107,-500.0,0.00052328,120]
[357016870,1743579063118,-713.48,0.00052328,2]
[357016871,1743579063129,-628.2,0.00052328,120]
[357016872,1743579063139,-500.0,0.00052328,120]
[357016873,1743579063150,-1935.16,0.00052328,120]
[357016874,1743579063160,-500.0,0.00052328,120]
[357016875,1743579063170,-1087.43,0.00052328,2]
[357016876,1743579063179,-152.0,0.00052351,17]
[357016877,1743579063189,-508.45920412,0.00052425,60]
[357016878,1743579063200,-150.79,0.00052435,120]
[357016879,1743579063210,-200.0,0.00052541,15]
[357016880,1743579063220,-1643.03,0.00052602,10]
[357016881,1743579063230,-2000.0,0.00052602,2]
[357016882,1743579063240,-500.0,0.00052602,120]
[357016883,1743579063250,-560.1,0.00052602,120]
[357016884,1743579063261,-1817.48,0.00052602,2]
[357016885,1743579063271,-500.0,0.00052602,120]
[357016886,1743579063281,-152.27172255,0.00052602,120]
[357016887,1743579063291,-834.73,0.00052602,120]
[357016888,1743579063301,-84638.93,0.00052602,7]
[357016889,1743579063311,-10300.02,0.00052602,2]
[357016890,1743579063321,-320.63887714,0.00052602,30]
[357016891,1743579063331,-500.0,0.00052602,120]
[357016892,1743579063342,-713.48,0.00052602,2]
[357016893,1743579063351,-628.2,0.00052602,120]
[357016894,1743579063361,-500.0,0.00052602,120]
[357016895,1743579063370,-1935.16,0.00052602,120]
[357016896,1743579063381,-500.0,0.00052602,120]
[357016897,1743579063390,-1087.43,0.00052602,2]
[357016898,1743579063400,-500.0,0.00052634,60]
[357016899,1743579063410,-2000.0,0.000527,2]
[357016900,1743579063420,-1112.82,0.00052735,2]
[357016901,1743579063430,-1643.03,0.00052876,10]
[357016902,1743579063439,-2000.0,0.00052876,2]
[357016903,1743579063448,-500.0,0.00052876,120]
[357016904,1743579063458,-560.1,0.00052876,120]
[357016905,1743579063468,-1817.48,0.00052876,2]
[357016906,1743579063478,-500.0,0.00052876,120]
[357016907,1743579063487,-834.73,0.00052876,120]
[357016908,1743579063496,-84638.93,0.00052876,7]
[357016909,1743579063510,-10300.02,0.00052876,2]
[357016910,1743579063519,-500.0,0.00052876,120]
[357016911,1743579063529,-713.48,0.00052876,2]
[357016912,1743579063539,-628.2,0.00052876,120]
[357016913,1743579063551,-500.0,0.00052876,120]
[357016914,1743579063560,-1935.16,0.00052876,120]
[357016915,1743579063570,-500.0,0.00052876,120]
[357016916,1743579063580,-1087.43,0.00052876,2]
[357016917,1743579063589,-500.0,0.00052883,60]
[357016918,1743579063600,-500.0,0.00052898,60]
[357016919,1743579063610,-500.0,0.00052899,60]
[357016920,1743579063619,-500.0,0.00052976,60]
[357016921,1743579063630,-1000.0,0.00053,120]
[357016922,1743579063639,-574.94144119,0.00053,2]
[357016923,1743579063649,-900.0,0.00053,2]
[357016924,1743579063658,-200.0,0.00053067,15]
[357016925,1743579063668,-1643.03,0.0005315,10]
[357016926,1743579063678,-2000.0,0.0005315,2]
[357016927,1743579063688,-500.0,0.0005315,120]
[357016928,1743579063698,-560.1,0.0005315,120]
[357016929,1743579063708,-1817.48,0.0005315,2]
[357016930,1743579063718,-500.0,0.0005315,120]
[357016931,1743579063727,-834.73,0.0005315,120]
[357016932,1743579063737,-152.85,0.0005315,120]
[357016933,1743579063747,-84638.93,0.0005315,7]
[357016934,1743579063757,-152.85,0.0005315,120]
[357016935,1743579063767,-10300.02,0.0005315,2]
[357016936,1743579063776,-172.835934,0.0005315,120]
[357016937,1743579063785,-172.835934,0.0005315,120]
[357016938,1743579063794,-500.0,0.0005315,120]
[357016939,1743579063804,-713.48,0.0005315,2]
[357016940,1743579063814,-628.2,0.0005315,120]
[357016941,1743579063824,-370.88007123,0.0005315,120]
[357016942,1743579063833,-1935.16,0.0005315,120]
[357016943,1743579063843,-500.0,0.0005315,120]
[357016944,1743579063853,-1087.43,0.0005315,2]
[357016945,1743579063862,-152.0,0.00053185,18]
[357016946,1743579063872,-500.0,0.00053187,60]
[357016947,1743579063881,-154.99,0.000532,51]
[357016948,1743579063891,-154.99,0.000532,51]
[357016949,1743579063900,-154.99,0.000532,51]
[357016950,1743579063910,-154.99,0.000532,51]
[357016951,1743579063919,-500.0,0.00053264,120]
[357016952,1743579063929,-500.0,0.00053264,120]
[357016953,1743579063939,-500.0,0.00053264,120]
[357016954,1743579063948,-209.0,0.0005328,30]
[357016955,1743579063958,-445.67022965,0.0005331,2]
[357016956,1743579063968,-15676.69163696,0.00053333,2]
[357016957,1743579063977,-500.0,0.00053384,60]
[357016958,1743579063987,-344.56442419,0.00053424,120]
[357016959,1743579063996,-1643.03,0.00053424,10]
[357016960,1743579064006,-2000.0,0.00053424,2]
[357016961,1743579064015,-500.0,0.00053424,120]
[357016962,1743579064025,-560.1,0.00053424,120]
[357016963,1743579064035,-1817.48,0.00053424,2]
[357016964,1743579064045,-500.0,0.00053424,120]
[357016965,1743579064054,-834.73,0.00053424,120]
[357016966,1743579064064,-84638.93,0.00053424,7]
[357016967,1743579064074,-10300.02,0.00053424,2]
[357016968,1743579064083,-500.0,0.00053424,120]
[357016969,1743579064094,-713.48,0.00053424,2]
[357016970,1743579064103,-628.2,0.00053424,120]
[357016971,1743579064112,-1935.16,0.00053424,120]
[357016972,1743579064122,-500.0,0.00053424,120]
[357016973,1743579064132,-1087.43,0.00053424,2]
[357016974,1743579064142,-150.79,0.00053425,120]
[357016975,1743579064154,-513.43859034,0.000535,60]
[357016976,1743579064163,-200.0,0.00053597,15]
[357016977,1743579064173,-500.0,0.00053628,60]
[357016978,1743579064183,-1643.03,0.00053698,10]
[357016979,1743579064193,-2000.0,0.00053698,2]
[357016980,1743579064203,-500.0,0.00053698,120]
[357016981,1743579064214,-560.1,0.00053698,120]
[357016982,1743579064224,-1817.48,0.00053698,2]
[357016983,1743579064233,-500.0,0.00053698,120]
[357016984,1743579064244,-834.73,0.00053698,120]
[357016985,1743579064254,-84638.93,0.00053698,7]
[357016986,1743579064264,-10300.02,0.00053698,2]
[357016987,1743579064273,-500.0,0.00053698,120]
[357016988,1743579064283,-713.48,0.00053698,2]
[357016989,1743579064293,-628.2,0.00053698,120]
[357016990,1743579064303,-1935.16,0.00053698,120]
[357016991,1743579064312,-500.0,0.00053698,120]
[357016992,1743579064411,-1087.43,0.00053698,2]
[357016993,1743579064422,-191.3,0.000538,120]
[357016994,1743579064432,-500.0,0.00053812,120]
[357016995,1743579064442,-500.0,0.00053812,120]
[357016996,1743579064451,-510.49619246,0.00053812,120]
[357016997,1743579064461,-1643.03,0.00053972,10]
[357016998,1743579064471,-595.64550911,0.00053972,2]
[357016999,1743579064481,-500.0,0.00053972,120]
[357017000,1743579064490,-560.1,0.00053972,120]
[357017001,1743579064502,-1817.48,0.00053972,2]
[357017002,1743579064512,-288.73248134,0.00053972,120]
[357017003,1743579064522,-834.73,0.00053972,120]
[357017004,1743579064532,-84638.93,0.00053972,7]
[357017005,1743579064541,-10300.02,0.00053972,2]
[357017006,1743579064552,-500.0,0.00053972,120]
[357017007,1743579064562,-713.48,0.00053972,2]
[357017008,1743579064571,-628.2,0.00053972,120]
[357017009,1743579064582,-1935.16,0.00053972,120]
[357017010,1743579064593,-500.0,0.00053972,120]
[357017011,1743579064602,-1087.43,0.00053972,2]
[357017012,1743579064612,-500.0,0.00053999,60]
[357017013,1743579064622,-500.0,0.00054,55]
[357017014,1743579064631,-152.0,0.00054019,19]
[357017015,1743579064641,-500.0,0.00054121,60]
[357017016,1743579064651,-1643.03,0.00054246,10]
[357017017,1743579064660,-500.0,0.00054246,120]
[357017018,1743579064670,-560.1,0.00054246,120]
[357017019,1743579064679,-1817.48,0.00054246,2]
[357017020,1743579064688,-834.73,0.00054246,120]
[357017021,1743579064697,-84638.93,0.00054246,7]
[357017022,1743579064707,-10300.02,0.00054246,2]
[357017023,1743579064716,-500.0,0.00054246,120]
[357017024,1743579064726,-713.48,0.00054246,2]
[357017025,1743579064736,-628.2,0.00054246,120]
[357017026,1743579064745,-1935.16,0.00054246,120]
[357017027,1743579064754,-500.0,0.00054246,120]
[357017028,1743579064763,-1087.43,0.00054246,2]
[357017029,1743579064773,-150.0,0.0005425,39]
[357017030,1743579064783,-514.59899048,0.0005436,120]
[357017031,1743579064792,-538.43643337,0.0005436,120]
[357017032,1743579064801,-500.0,0.00054493,60]
[357017033,1743579064811,-5742.60220791,0.000545,120]
[357017034,1743579064820,-1643.03,0.0005452,10]
[357017035,1743579064829,-500.0,0.0005452,120]
[357017036,1743579064839,-560.1,0.0005452,120]
[357017037,1743579064848,-1817.48,0.0005452,2]
[357017038,1743579064857,-834.73,0.0005452,120]
[357017039,1743579064866,-84638.93,0.0005452,7]
[357017040,1743579064876,-10300.02,0.0005452,2]
[357017041,1743579064885,-500.0,0.0005452,120]
[357017042,1743579064894,-713.48,0.0005452,2]
[357017043,1743579064904,-628.2,0.0005452,120]
[357017044,1743579064913,-1935.16,0.0005452,120]
[357017045,1743579064922,-500.0,0.0005452,120]
[357017046,1743579064932,-1087.43,0.0005452,2]
[357017047,1743579064941,-500.0,0.00054693,60]
[357017048,1743579064951,-500.0,0.00054694,60]
[357017049,1743579064960,-242.988332,0.00054794,2]
[357017050,1743579064969,-1000.0,0.00054794,2]
[357017051,1743579064979,-1000.0,0.00054794,2]
[357017052,1743579064989,-1000.0,0.00054794,2]
[357017053,1743579064998,-1000.0,0.00054794,2]
[357017054,1743579065007,-1000.0,0.00054794,2]
[357017055,1743579065017,-1000.0,0.00054794,2]
[357017056,1743579065026,-1000.0,0.00054794,2]
[357017057,1743579065035,-1000.0,0.00054794,2]
[357017058,1743579065044,-1092.47057993,0.00054794,2]
[357017059,1743579065054,-500.0,0.00054794,120]
[357017060,1743579065064,-500.0,0.00054794,120]
[357017061,1743579065074,-293.86666823,0.00054794,120]
[357017062,1743579065083,-1643.03,0.00054794,10]
[357017063,1743579065093,-500.0,0.00054794,120]
[357017064,1743579065102,-560.1,0.00054794,120]
[357017065,1743579065112,-1817.48,0.00054794,2]
[357017066,1743579065122,-1000.0,0.00054794,120]
[357017067,1743579065131,-1000.0,0.00054794,120]
[357017068,1743579065140,-1000.0,0.00054794,120]
[357017069,1743579065150,-1000.0,0.00054794,120]
[357017070,1743579065159,-948.38878002,0.00054794,120]
[357017071,1743579065170,-834.73,0.00054794,120]
[357017072,1743579065179,-84638.93,0.00054794,7]
[357017073,1743579065188,-10300.02,0.00054794,2]
[357017074,1743579065197,-500.0,0.00054794,120]
[357017075,1743579065207,-713.48,0.00054794,2]
[357017076,1743579065217,-628.2,0.00054794,120]
[357017077,1743579065227,-1935.16,0.00054794,120]
[357017078,1743579065236,-500.0,0.00054794,120]
[357017079,1743579065246,-1087.43,0.00054794,2]
[357017080,1743579065256,-150.0,0.00054795,120]
[357017081,1743579065265,-150.0,0.00054795,120]
[357017082,1743579065275,-150.0,0.00054795,120]
[357017083,1743579065285,-150.0,0.00054795,120]
[357017084,1743579065295,-150.0,0.00054826,120]
[357017085,1743579065304,-152.0,0.00054853,20]
[357017086,1743579065314,-150.0,0.00054857,120]
[357017087,1743579065324,-400.0,0.0005487,7]
[357017088,1743579065333,-150.0,0.00054888,120]
[357017089,1743579065344,-212.0,0.0005489,30]
[357017090,1743579065354,-209.0,0.0005489,30]
[357017091,1743579065364,-211.0,0.0005489,120]
[357017092,1743579065373,-210.0,0.0005489,30]
[357017093,1743579065382,-209.0,0.0005489,30]
[357017094,1743579065392,-211.0,0.0005489,120]
[357017095,1743579065401,-210.0,0.0005489,30]
[357017096,1743579065411,-150.0,0.00054919,120]
[357017097,1743579065420,-150.0,0.0005495,120]
[357017098,1743579065430,-967.32419893,0.00054953,60]
[357017099,1743579065439,-150.0,0.00054972,120]
[357017100,1743579065449,-150.0,0.00054981,120]
[357017101,1743579065459,-1112.82,0.00054999,2]
[357017102,1743579065468,-1002.417,0.00055,5]
[357017103,1743579065478,-1000.0,0.00055,2]
[357017104,1743579065488,-1065.0,0.00055,120]
[357017105,1743579065499,-1056.984793,0.00055,120]
[357017106,1743579065511,-950.0,0.00055,2]
[357017107,1743579065520,-281.0,0.00055,2]
[357017108,1743579065530,-150.0,0.00055013,120]
[357017109,1743579065540,-150.0,0.00055044,120]
[357017110,1743579065551,-1643.03,0.00055068,10]
[357017111,1743579065561,-470.98891241,0.00055068,120]
[357017112,1743579065570,-560.1,0.00055068,120]
[357017113,1743579065580,-1817.48,0.00055068,2]
[357017114,1743579065592,-834.73,0.00055068,120]
[357017115,1743579065601,-84638.93,0.00055068,7]
[357017116,1743579065611,-10300.02,0.00055068,2]
[357017117,1743579065621,-372.82767886,0.00055068,120]
[357017118,1743579065631,-713.48,0.00055068,2]
[357017119,1743579065641,-628.2,0.00055068,120]
[357017120,1743579065651,-1935.16,0.00055068,120]
[357017121,1743579065660,-500.0,0.00055068,120]
[357017122,1743579065669,-1087.43,0.00055068,2]
[357017123,1743579065680,-150.0,0.00055075,120]
[357017124,1743579065690,-150.0,0.00055106,120]
[357017125,1743579065699,-150.0,0.00055124,120]
[357017126,1743579065709,-150.0,0.00055137,120]
[357017127,1743579065719,-150.0,0.00055149,120]
[357017128,1743579065729,-150.0,0.00055168,120]
[357017129,1743579065738,-64571.54,0.00055184,8]
[357017130,1743579065748,-150.0,0.000552,120]
[357017131,1743579065757,-150.0,0.00055231,120]
[357017132,1743579065766,-150.0,0.00055262,120]
[357017133,1743579065776,-150.0,0.00055293,120]
[357017134,1743579065785,-150.0,0.00055324,120]
[357017135,1743579065796,-150.0,0.00055327,120]
[357017136,1743579065806,-1643.03,0.00055342,10]
[357017137,1743579065815,-560.1,0.00055342,120]
[357017138,1743579065824,-1817.48,0.00055342,2]
[357017139,1743579065834,-834.73,0.00055342,120]
[357017140,1743579065846,-84638.93,0.00055342,7]
[357017141,1743579065855,-10300.02,0.00055342,2]
[357017142,1743579065864,-713.48,0.00055342,2]
[357017143,1743579065873,-628.2,0.00055342,120]
[357017144,1743579065882,-1935.16,0.00055342,120]
[357017145,1743579065892,-500.0,0.00055342,120]
[357017146,1743579065901,-1087.43,0.00055342,2]
[357017147,1743579065911,-150.0,0.00055355,120]
[357017148,1743579065920,-150.0,0.00055386,120]
[357017149,1743579065930,-150.0,0.00055418,120]
[357017150,1743579065939,-150.0,0.00055449,120]
[357017151,1743579065948,-150.0,0.00055453,120]
[357017152,1743579065957,-150.0,0.0005548,120]
[357017153,1743579065966,-154.99,0.000555,54]
[357017154,1743579065975,-154.99,0.000555,54]
[357017155,1743579065985,-154.99,0.000555,54]
[357017156,1743579065994,-154.99,0.000555,54]
[357017157,1743579066004,-500000.0,0.000555,120]
[357017158,1743579066013,-151.0,0.000555,120]
[357017159,1743579066023,-151.0,0.000555,120]
[357017160,1743579066032,-150.0,0.00055504,120]
[357017161,1743579066041,-150.0,0.00055511,120]
[357017162,1743579066050,-150.0,0.00055542,120]
[357017163,1743579066059,-150.0,0.00055573,120]
[357017164,1743579066068,-150.0,0.00055605,120]
[357017165,1743579066078,-1643.14586505,0.00055616,10]
[357017166,1743579066090,-560.28586538,0.00055616,120]
[357017167,1743579066099,-1817.55089406,0.00055616,2]
[357017168,1743579066109,-834.8206941,0.00055616,120]
[357017169,1743579066119,-84639.0075313,0.00055616,7]
[357017170,1743579066129,-10300.08969271,0.00055616,2]
[357017171,1743579066139,-713.63397234,0.00055616,2]
[357017172,1743579066149,-628.29732843,0.00055616,120]
[357017173,1743579066158,-1935.35216695,0.00055616,120]
[357017174,1743579066167,-163.4,0.00055616,120]
[357017175,1743579066177,-1087.51033788,0.00055616,2]
[357017176,1743579066269,-150.0,0.00055636,120]
[357017177,1743579066280,-150.0,0.00055667,120]
[357017178,1743579066290,-150.0,0.00055681,120]
[357017179,1743579066300,-152.0,0.00055687,21]
[357017180,1743579066310,-150.0,0.00055695,14]
[357017181,1743579066320,-150.0,0.00055698,120]
[357017182,1743579066331,-150.0,0.00055729,120]
[357017183,1743579066342,-150.0,0.0005576,120]
[357017184,1743579066352,-150.0,0.00055783,120]
[357017185,1743579066361,-150.0,0.00055791,120]
[357017186,1743579066372,-150.0,0.00055823,120]
[357017187,1743579066382,-150.0,0.00055854,120]
[357017188,1743579066393,-150.0,0.00055859,120]
[357017189,1743579066403,-150.0,0.00055877,14]
[357017190,1743579066413,-500.0,0.00055881,120]
[357017191,1743579066423,-150.0,0.00055885,120]
[357017192,1743579066433,-962.10928903,0.0005589,120]
[357017193,1743579066444,-150.0,0.00055915,14]
[357017194,1743579066454,-150.0,0.00055916,120]
[357017195,1743579066464,-150.0,0.00055921,14]
[357017196,1743579066474,-150.0,0.00055947,120]
[357017197,1743579066484,-150.0,0.00055959,14]
[357017198,1743579066494,-150.0,0.00055966,14]
[357017199,1743579066509,-150.0,0.00055978,120]
[357017200,1743579066525,-150.0,0.00055981,14]
[357017201,1743579066535,-1015.0,0.00056,120]
[357017202,1743579066545,-152.77024,0.00056,120]
[357017203,1743579066557,-155.408047,0.00056,120]
[357017204,1743579066567,-151.0,0.00056,120]
[357017205,1743579066579,-151.0,0.00056,120]
[357017206,1743579066590,-151.0,0.00056,120]
[357017207,1743579066602,-1105.50035924,0.00056,120]
[357017208,1743579066612,-151615.0,0.00056,120]
[357017209,1743579066622,-150.0,0.0005601,120]
[357017210,1743579066633,-150.0,0.00056036,120]
[357017211,1743579066643,-150.0,0.00056041,120]
[357017212,1743579066654,-150.0,0.00056057,14]
[357017213,1743579066663,-150.0,0.00056072,120]
[357017214,1743579066673,-150.0,0.00056077,14]
[357017215,1743579066682,-150.0,0.00056085,14]
[357017216,1743579066692,-150.0,0.00056103,120]
[357017217,1743579066701,-150.0,0.00056112,120]
[357017218,1743579066711,-150.0,0.00056132,14]
[357017219,1743579066721,-150.0,0.00056134,120]
[357017220,1743579066731,-150.0,0.00056165,120]
[357017221,1743579066740,-150.0,0.00056197,120]
[357017222,1743579066751,-150.0,0.00056213,120]
[357017223,1743579066760,-150.0,0.00056228,120]
[357017224,1743579066770,-150.0,0.00056233,14]
[357017225,1743579066780,-150.0,0.00056238,14]
[357017226,1743579066789,-150.0,0.00056259,120]
[357017227,1743579066799,-150.0,0.0005629,120]
[357017228,1743579066808,-1000.0,0.00056304,60]
[357017229,1743579066818,-150.0,0.00056321,120]
[357017230,1743579066827,-150.0,0.00056352,120]
[357017231,1743579066838,-150.0,0.00056383,120]
[357017232,1743579066849,-150.0,0.00056388,14]
[357017233,1743579066859,-150.0,0.00056391,120]
[357017234,1743579066869,-304.89544978,0.000564,30]
[357017235,1743579066879,-150.0,0.00056415,120]